[Event "Rapid della Domenica"]
[Site "Chess.com"]
[Date "2020.05.17"]
[Round "2"]
[White "SanSecondoPR"]
[Black "toninoiuorio"]
[Result "1-0"]
[WhiteElo "1281"]
[BlackElo "1358"]
[TimeControl "720+3"]
[EndTime "6:47:14 PDT"]
[Termination "SanSecondoPR ha vinto per abbandono"]

1. e4 {[%clk 0:12:02.9]} 1... c5 {[%clk 0:12:01]} 2. d4 {[%clk 0:12:03]} 2...
cxd4 {[%clk 0:12:01.9]} 3. Nf3 {[%clk 0:12:02.6]} 3... Nc6 {[%clk 0:12:03]} 4.
Nxd4 {[%clk 0:12:03.1]} 4... e6 {[%clk 0:12:04.9]} 5. Nc3 {[%clk 0:12:03.2]}
5... Qc7 {[%clk 0:12:03.1]} 6. Nb3 {[%clk 0:07:43.7]} 6... Nf6 {[%clk
0:10:26.5]} 7. Bg5 {[%clk 0:07:40.6]} 7... Be7 {[%clk 0:10:27]} 8. Qd2 {[%clk
0:07:38.1]} 8... a6 {[%clk 0:10:28.2]} 9. O-O-O {[%clk 0:07:38.3]} 9... O-O
{[%clk 0:10:27.2]} 10. Kb1 {[%clk 0:07:21.2]} 10... b5 {[%clk 0:10:27.1]} 11.
Bd3 {[%clk 0:07:07.3]} 11... Rd8 {[%clk 0:10:28]} 12. f3 {[%clk 0:07:02.5]}
12... Bb7 {[%clk 0:10:29.6]} 13. Qf2 {[%clk 0:06:54.4]} 13... Nb4 {[%clk
0:10:27]} 14. e5 {[%clk 0:06:37.2]} 14... Nxd3 {[%clk 0:10:25.1]} 15. Rxd3
{[%clk 0:06:33.5]} 15... Nd5 {[%clk 0:10:26.8]} 16. Nxd5 {[%clk 0:06:28.7]}
16... Bxd5 {[%clk 0:10:23.9]} 17. Bxe7 {[%clk 0:06:24.6]} 17... Re8 {[%clk
0:10:25.3]} 18. Bd6 {[%clk 0:06:25.2]} 18... Qc6 {[%clk 0:10:26.5]} 19. Qc5
{[%clk 0:06:23.6]} 19... f6 {[%clk 0:10:12.1]} 20. Qxc6 {[%clk 0:06:23.4]} 20...
dxc6 {[%clk 0:10:13.2]} 21. f4 {[%clk 0:06:16.9]} 21... fxe5 {[%clk 0:10:12.8]}
22. Bxe5 {[%clk 0:06:04.3]} 22... Bxg2 {[%clk 0:10:10]} 23. Rg1 {[%clk
0:06:03.1]} 23... Be4 {[%clk 0:10:08.9]} 24. Rxg7+ {[%clk 0:06:00.4]} 24... Kf8
{[%clk 0:10:08.1]} 25. Rdd7 {[%clk 0:05:56.1]} 25... Bg6 {[%clk 0:10:08]} 26.
Bf6 {[%clk 0:05:42.8]} 26... Rad8 {[%clk 0:09:56]} 27. Bxd8 {[%clk 0:05:38]}
27... Rxd8 {[%clk 0:09:55.2]} 28. Nc5 {[%clk 0:05:28.3]} 28... Re8 {[%clk
0:09:44.2]} 29. Nxa6 {[%clk 0:05:20.8]} 29... e5 {[%clk 0:09:45.6]} 30. Nc7
{[%clk 0:05:04]} 30... Rc8 {[%clk 0:09:26.5]} 31. fxe5 {[%clk 0:05:02.3]} 31...
Re8 {[%clk 0:09:18.4]} 32. e6 {[%clk 0:05:00]} 32... Rc8 {[%clk 0:09:12.4]} 33.
h3 {[%clk 0:04:43.2]} 33... Re8 {[%clk 0:08:45]} 34. Nxe8 {[%clk 0:04:40.1]} 1-0

[Event "Rapid della Domenica"]
[Site "Chess.com"]
[Date "2020.05.17"]
[Round "2"]
[White "pedrak"]
[Black "crippo"]
[Result "1-0"]
[WhiteElo "1682"]
[BlackElo "1517"]
[TimeControl "720+3"]
[EndTime "6:49:02 PDT"]
[Termination "pedrak ha vinto per abbandono"]

1. d4 {[%clk 0:12:02.9]} 1... d5 {[%clk 0:12:00.6]} 2. Nf3 {[%clk 0:12:04.1]}
2... Nf6 {[%clk 0:12:01]} 3. Bf4 {[%clk 0:12:05]} 3... e6 {[%clk 0:11:59.1]} 4.
e3 {[%clk 0:12:06.1]} 4... Be7 {[%clk 0:12:00]} 5. Bd3 {[%clk 0:12:05.7]} 5...
O-O {[%clk 0:12:01.1]} 6. Nbd2 {[%clk 0:12:06.8]} 6... c6 {[%clk 0:12:02.2]} 7.
O-O {[%clk 0:12:07.9]} 7... Nbd7 {[%clk 0:12:03.4]} 8. Qe2 {[%clk 0:12:09.1]}
8... h6 {[%clk 0:12:02.5]} 9. h3 {[%clk 0:12:05.9]} 9... Nh7 {[%clk 0:12:04.3]}
10. e4 {[%clk 0:12:00.6]} 10... Bg5 {[%clk 0:12:01.4]} 11. Bd6 {[%clk
0:11:53.4]} 11... Re8 {[%clk 0:12:02.3]} 12. e5 {[%clk 0:11:49.4]} 12... Be7
{[%clk 0:12:00.9]} 13. Bxe7 {[%clk 0:11:48.6]} 13... Qxe7 {[%clk 0:12:02.3]} 14.
Nh2 {[%clk 0:11:46.3]} 14... f5 {[%clk 0:12:00.6]} 15. f4 {[%clk 0:11:27.2]}
15... c5 {[%clk 0:12:01.4]} 16. c3 {[%clk 0:11:28.3]} 16... cxd4 {[%clk
0:12:02.2]} 17. cxd4 {[%clk 0:11:28.5]} 17... Qb4 {[%clk 0:11:53.7]} 18. Ndf3
{[%clk 0:11:26.4]} 18... Nb6 {[%clk 0:11:48.3]} 19. a3 {[%clk 0:11:21.9]} 19...
Qe7 {[%clk 0:11:48.9]} 20. Rac1 {[%clk 0:11:21.1]} 20... Bd7 {[%clk 0:11:49.6]}
21. Nd2 {[%clk 0:11:09.5]} 21... Rac8 {[%clk 0:11:49.9]} 22. Nb3 {[%clk
0:11:03.7]} 22... Nf8 {[%clk 0:11:31.5]} 23. Nc5 {[%clk 0:10:57.3]} 23... Bc6
{[%clk 0:11:33.4]} 24. b4 {[%clk 0:10:56]} 24... Nbd7 {[%clk 0:11:34.8]} 25. Bb1
{[%clk 0:09:41.4]} 25... Nxc5 {[%clk 0:11:34.6]} 26. Rxc5 {[%clk 0:09:16.9]}
26... Qd7 {[%clk 0:11:31.1]} 27. Rfc1 {[%clk 0:09:06]} 27... a6 {[%clk
0:11:25.9]} 28. Qh5 {[%clk 0:08:31.6]} 28... Kh7 {[%clk 0:11:08.2]} 29. Ng4
{[%clk 0:07:48.1]} 29... Ng6 {[%clk 0:10:57.6]} 30. Rf1 {[%clk 0:07:29.5]} 30...
Qf7 {[%clk 0:10:54.1]} 31. Ne3 {[%clk 0:07:25.1]} 31... Bb5 {[%clk 0:10:29.1]}
32. Rf2 {[%clk 0:07:18.6]} 32... Rxc5 {[%clk 0:10:26.6]} 33. bxc5 {[%clk
0:07:16.6]} 33... Rf8 {[%clk 0:10:16]} 34. Qd1 {[%clk 0:07:11.2]} 34... Kh8
{[%clk 0:09:56.6]} 35. Qc2 {[%clk 0:07:10.4]} 35... Ne7 {[%clk 0:09:54.8]} 36.
a4 {[%clk 0:07:06.5]} 36... Bc6 {[%clk 0:09:44.2]} 37. g4 {[%clk 0:06:56]} 37...
g6 {[%clk 0:09:42.9]} 38. gxf5 {[%clk 0:06:49.8]} 38... gxf5 {[%clk 0:09:44.1]}
39. Rg2 {[%clk 0:06:44.4]} 39... Rg8 {[%clk 0:09:45.3]} 40. Kh2 {[%clk
0:06:43.6]} 40... Rxg2+ {[%clk 0:09:44.7]} 41. Nxg2 {[%clk 0:06:45.3]} 41... Qh5
{[%clk 0:09:36.9]} 42. a5 {[%clk 0:06:42.9]} 42... Ng6 {[%clk 0:09:34.4]} 43.
Qd2 {[%clk 0:06:41.3]} 43... Nh4 {[%clk 0:09:27.3]} 44. Nxh4 {[%clk 0:06:36.6]}
44... Qxh4 {[%clk 0:09:29.1]} 45. Bc2 {[%clk 0:06:37.8]} 45... Bb5 {[%clk
0:09:10]} 46. Bd1 {[%clk 0:06:36]} 46... Bf1 {[%clk 0:09:00.7]} 47. Qe3 {[%clk
0:06:29.8]} 47... Qd8 {[%clk 0:08:43]} 48. Qe1 {[%clk 0:06:24.2]} 48... Bd3
{[%clk 0:08:38.4]} 49. Bh5 {[%clk 0:06:21.6]} 49... Qg8 {[%clk 0:08:27.4]} 50.
Qg3 {[%clk 0:06:20.9]} 50... Qxg3+ {[%clk 0:08:01.4]} 51. Kxg3 {[%clk
0:06:22.5]} 51... Kg7 {[%clk 0:08:02.8]} 52. Kh4 {[%clk 0:06:21]} 52... Bb5
{[%clk 0:08:02.7]} 53. Bd1 {[%clk 0:06:19.3]} 53... Be8 {[%clk 0:08:02.7]} 54.
Be2 {[%clk 0:06:08.7]} 54... Kf7 {[%clk 0:07:57.3]} 55. Bh5+ {[%clk 0:06:09]}
55... Kf8 {[%clk 0:07:58.3]} 56. Bxe8 {[%clk 0:06:10.6]} 56... Kxe8 {[%clk
0:08:00.2]} 57. Kh5 {[%clk 0:06:12.7]} 57... Kf7 {[%clk 0:08:02.1]} 58. Kxh6
{[%clk 0:06:14.8]} 58... Kg8 {[%clk 0:08:02]} 59. Kg6 {[%clk 0:06:15.5]} 59...
Kf8 {[%clk 0:08:03.4]} 60. Kf6 {[%clk 0:06:17.2]} 1-0

[Event "Rapid della Domenica"]
[Site "Chess.com"]
[Date "2020.05.17"]
[Round "2"]
[White "caramante"]
[Black "sirmale49"]
[Result "1/2-1/2"]
[WhiteElo "1571"]
[BlackElo "1453"]
[TimeControl "720+3"]
[EndTime "6:52:05 PDT"]
[Termination "Patta d'accordo"]

1. Nf3 {[%clk 0:12:02.9]} 1... d5 {[%clk 0:11:58.9]} 2. d4 {[%clk 0:11:59.3]}
2... Nc6 {[%clk 0:11:51.7]} 3. g3 {[%clk 0:12:00.9]} 3... Nf6 {[%clk 0:11:51.8]}
4. c3 {[%clk 0:12:02.8]} 4... e6 {[%clk 0:11:52]} 5. Bg2 {[%clk 0:12:04.7]} 5...
Be7 {[%clk 0:11:54.1]} 6. Bg5 {[%clk 0:12:06.2]} 6... O-O {[%clk 0:11:50.7]} 7.
Bxf6 {[%clk 0:12:07.5]} 7... Bxf6 {[%clk 0:11:52]} 8. Nbd2 {[%clk 0:12:08.9]}
8... Re8 {[%clk 0:11:48.9]} 9. O-O {[%clk 0:12:10.1]} 9... e5 {[%clk 0:11:49.9]}
10. dxe5 {[%clk 0:12:12.2]} 10... Nxe5 {[%clk 0:11:50.8]} 11. Nxe5 {[%clk
0:12:14]} 11... Bxe5 {[%clk 0:11:47.3]} 12. Nf3 {[%clk 0:12:15.9]} 12... Bf6
{[%clk 0:11:44.8]} 13. Re1 {[%clk 0:12:17.7]} 13... c6 {[%clk 0:11:46.6]} 14.
Qc2 {[%clk 0:12:18.1]} 14... Bg4 {[%clk 0:11:33.8]} 15. Rad1 {[%clk 0:12:18.5]}
15... Qd7 {[%clk 0:11:05.7]} 16. e4 {[%clk 0:12:10.4]} 16... Bh5 {[%clk
0:10:36.9]} 17. exd5 {[%clk 0:12:04.4]} 17... Rxe1+ {[%clk 0:10:37.6]} 18. Rxe1
{[%clk 0:12:03.8]} 18... Qxd5 {[%clk 0:10:22.6]} 19. Nd4 {[%clk 0:11:54.4]}
19... Qd6 {[%clk 0:09:56.3]} 20. Qe4 {[%clk 0:11:43.7]} 20... Bg6 {[%clk
0:09:13]} 21. Qe3 {[%clk 0:10:27.2]} 21... h6 {[%clk 0:08:57.9]} 22. h4 {[%clk
0:10:09.7]} 22... Kf8 {[%clk 0:08:32.4]} 23. Nb3 {[%clk 0:09:33.7]} 23... Rd8
{[%clk 0:08:12.6]} 24. Qc5 {[%clk 0:09:26.6]} 24... b6 {[%clk 0:07:36.3]} 25.
Qxc6 {[%clk 0:09:07.9]} 25... Qxc6 {[%clk 0:06:37.4]} 26. Bxc6 {[%clk
0:09:06.3]} 26... Bc2 {[%clk 0:06:27.3]} 27. Nd4 {[%clk 0:08:46.9]} 27... Bxd4
{[%clk 0:06:06.8]} 28. cxd4 {[%clk 0:08:46.3]} 28... g6 {[%clk 0:05:59]} 29. d5
{[%clk 0:08:42]} 29... Kg7 {[%clk 0:05:56.2]} 30. a3 {[%clk 0:08:38.7]} 30...
Bb3 {[%clk 0:05:53.3]} 31. Re7 {[%clk 0:08:19.9]} 31... Bxd5 {[%clk 0:05:22.8]}
32. Bxd5 {[%clk 0:08:16]} 32... Rxd5 {[%clk 0:05:24.5]} 33. Rxa7 {[%clk
0:08:17.2]} 33... Rd2 {[%clk 0:05:09.1]} 34. b4 {[%clk 0:08:15]} 34... b5 {[%clk
0:05:01.2]} 35. Ra5 {[%clk 0:08:10.6]} 35... Rd5 {[%clk 0:05:01.6]} 36. a4
{[%clk 0:08:09.4]} 36... Rd1+ {[%clk 0:04:54.5]} 37. Kg2 {[%clk 0:08:10.7]}
37... bxa4 {[%clk 0:04:55.9]} 38. Rxa4 {[%clk 0:08:11.1]} 38... Rb1 {[%clk
0:04:57.3]} 39. Kf3 {[%clk 0:08:10.4]} 39... Kf6 {[%clk 0:04:54.7]} 40. Ke3
{[%clk 0:08:11.6]} 40... Ke5 {[%clk 0:04:55.9]} 41. f4+ {[%clk 0:08:13]} 41...
Kd5 {[%clk 0:04:57]} 42. g4 {[%clk 0:08:01.8]} 42... Rb3+ {[%clk 0:04:57.3]} 43.
Kf2 {[%clk 0:07:59.4]} 43... f6 {[%clk 0:04:37.4]} 44. Ra5+ {[%clk 0:07:53]}
44... Ke4 {[%clk 0:04:35.1]} 45. Ra6 {[%clk 0:07:52.9]} 45... Kxf4 {[%clk
0:04:25.2]} 46. Rxf6+ {[%clk 0:07:53.3]} 46... Kxg4 {[%clk 0:04:26.8]} 47. Rxg6+
{[%clk 0:07:54.2]} 47... Kh5 {[%clk 0:04:23]} 48. Rb6 {[%clk 0:07:51.8]} 48...
Kxh4 {[%clk 0:04:06.7]} 49. Rxh6+ {[%clk 0:07:51.9]} 49... Kg4 {[%clk
0:04:08.5]} 50. Rb6 {[%clk 0:07:53.3]} 50... Kf4 {[%clk 0:04:09.5]} 51. Ke2
{[%clk 0:07:55.3]} 51... Ke4 {[%clk 0:04:11.2]} 52. Kd2 {[%clk 0:07:57.5]} 52...
Kd4 {[%clk 0:04:12.4]} 53. Kc2 {[%clk 0:07:59.3]} 53... Rc3+ {[%clk 0:04:11.4]}
54. Kb2 {[%clk 0:07:59.3]} 54... Rh3 {[%clk 0:04:04.1]} 55. Rb8 {[%clk
0:07:59.2]} 55... Kc4 {[%clk 0:04:04.1]} 56. b5 {[%clk 0:07:59.8]} 56... Kb4
{[%clk 0:04:01]} 57. b6 {[%clk 0:08:00.4]} 57... Rh2+ {[%clk 0:04:02.7]} 58. Kc1
{[%clk 0:08:01.6]} 58... Kb5 {[%clk 0:03:56.7]} 59. b7 {[%clk 0:07:59.7]} 59...
Kb6 {[%clk 0:03:58]} 60. Kd1 {[%clk 0:07:42.5]} 60... Ka7 {[%clk 0:03:57.1]} 61.
Rf8 {[%clk 0:07:39.4]} 61... Kxb7 {[%clk 0:03:58]} 62. Rf7+ {[%clk 0:07:41.2]}
62... Kc6 {[%clk 0:03:58.4]} 1/2-1/2

[Event "Rapid della Domenica"]
[Site "Chess.com"]
[Date "2020.05.17"]
[Round "2"]
[White "OMatteoWuO"]
[Black "sergiodone"]
[Result "1-0"]
[WhiteElo "1190"]
[BlackElo "1423"]
[TimeControl "720+3"]
[EndTime "6:58:35 PDT"]
[Termination "OMatteoWuO ha vinto per abbandono"]

1. d4 {[%clk 0:12:02.9]} 1... Nf6 {[%clk 0:11:53.2]} 2. c4 {[%clk 0:12:03.2]}
2... c5 {[%clk 0:11:54.8]} 3. d5 {[%clk 0:12:00.2]} 3... b5 {[%clk 0:11:55.9]}
4. Nf3 {[%clk 0:11:30.1]} 4... bxc4 {[%clk 0:11:57.4]} 5. e3 {[%clk 0:11:26.4]}
5... d6 {[%clk 0:11:58.9]} 6. Bxc4 {[%clk 0:11:28.2]} 6... g6 {[%clk 0:12:00]}
7. Nc3 {[%clk 0:11:25.1]} 7... Bg7 {[%clk 0:12:01.7]} 8. Bd2 {[%clk 0:11:24.9]}
8... Nbd7 {[%clk 0:12:03.3]} 9. a3 {[%clk 0:11:18.1]} 9... O-O {[%clk
0:12:04.1]} 10. b4 {[%clk 0:11:19.3]} 10... cxb4 {[%clk 0:11:59.3]} 11. axb4
{[%clk 0:11:20.7]} 11... Qc7 {[%clk 0:11:56.3]} 12. Qb3 {[%clk 0:11:08.2]} 12...
Nb6 {[%clk 0:11:56.7]} 13. Bb5 {[%clk 0:10:42.4]} 13... Bg4 {[%clk 0:11:49.3]}
14. Bc6 {[%clk 0:10:40.6]} 14... Rab8 {[%clk 0:11:40.1]} 15. Nd4 {[%clk
0:09:43.1]} 15... Nh5 {[%clk 0:10:52.4]} 16. Ndb5 {[%clk 0:09:40.3]} 16... Qd8
{[%clk 0:10:47.8]} 17. Rxa7 {[%clk 0:09:15.4]} 17... Bd7 {[%clk 0:10:42.5]} 18.
Nd4 {[%clk 0:08:50.6]} 18... Bxd4 {[%clk 0:10:38.7]} 19. exd4 {[%clk 0:08:50.7]}
19... Bxc6 {[%clk 0:10:38.9]} 20. dxc6 {[%clk 0:08:44.7]} 20... Rc8 {[%clk
0:10:33.7]} 21. d5 {[%clk 0:08:32]} 21... Nf6 {[%clk 0:10:23.3]} 22. Be3 {[%clk
0:08:27]} 22... e6 {[%clk 0:08:33]} 23. Bxb6 {[%clk 0:08:24.2]} 23... Qxb6
{[%clk 0:08:32.1]} 24. Rb7 {[%clk 0:08:25.5]} 24... Qd4 {[%clk 0:08:26.2]} 25.
O-O {[%clk 0:07:55.2]} 25... exd5 {[%clk 0:08:27.7]} 26. Rd1 {[%clk 0:07:50.3]}
26... Qe5 {[%clk 0:08:17.1]} 27. b5 {[%clk 0:07:41.3]} 27... d4 {[%clk
0:08:02.4]} 28. Na4 {[%clk 0:06:23.8]} 28... Ng4 {[%clk 0:07:49.1]} 29. Qg3
{[%clk 0:05:39.2]} 29... Qe2 {[%clk 0:07:14.9]} 30. Rf1 {[%clk 0:05:38.5]} 30...
Ne5 {[%clk 0:07:11.5]} 31. f4 {[%clk 0:05:02.6]} 31... Nd3 {[%clk 0:06:47.9]}
32. f5 {[%clk 0:04:40]} 32... Qe3+ {[%clk 0:06:39]} 33. Qxe3 {[%clk 0:04:41.1]}
33... dxe3 {[%clk 0:06:39.6]} 34. fxg6 {[%clk 0:04:41.9]} 34... hxg6 {[%clk
0:06:39.9]} 35. Nc3 {[%clk 0:04:29.8]} 35... e2 {[%clk 0:06:21.4]} 36. Nxe2
{[%clk 0:04:10.7]} 36... Rfe8 {[%clk 0:05:52.5]} 37. Nf4 {[%clk 0:03:27]} 37...
Nxf4 {[%clk 0:05:06.3]} 38. Rxf4 {[%clk 0:03:27.2]} 38... f5 {[%clk 0:05:05.8]}
39. c7 {[%clk 0:03:16.7]} 39... Kf7 {[%clk 0:04:58.5]} 40. Rf1 {[%clk
0:03:14.1]} 40... Re7 {[%clk 0:04:52.4]} 41. b6 {[%clk 0:03:13.7]} 41... Ke6
{[%clk 0:04:29.7]} 42. Re1+ {[%clk 0:03:12]} 42... Kd7 {[%clk 0:04:28]} 43.
Rxe7+ {[%clk 0:03:05.8]} 43... Kxe7 {[%clk 0:04:29.5]} 44. Rb8 {[%clk 0:03:08]}
44... Kd7 {[%clk 0:04:31.1]} 45. b7 {[%clk 0:02:56.6]} 45... Rxc7 {[%clk
0:04:31.7]} 46. Rd8+ {[%clk 0:02:54.4]} 46... Kxd8 {[%clk 0:04:25.7]} 47. b8=Q+
{[%clk 0:02:54.5]} 47... Kd7 {[%clk 0:04:26.6]} 48. Qb5+ {[%clk 0:02:53.3]}
48... Ke7 {[%clk 0:04:17]} 49. h3 {[%clk 0:02:47.8]} 49... Rc1+ {[%clk
0:04:07.5]} 50. Kf2 {[%clk 0:02:43.1]} 50... Rc5 {[%clk 0:04:08.7]} 51. Qb7+
{[%clk 0:02:42.3]} 51... Ke6 {[%clk 0:03:51.5]} 52. Qg7 {[%clk 0:02:38.9]} 52...
Re5 {[%clk 0:03:38.1]} 53. Qxg6+ {[%clk 0:02:37.1]} 53... Kd5 {[%clk 0:03:39.1]}
54. h4 {[%clk 0:02:17.5]} 54... f4 {[%clk 0:03:39]} 55. Qd3+ {[%clk 0:02:17.7]}
55... Ke6 {[%clk 0:03:38.8]} 56. h5 {[%clk 0:02:17.5]} 56... d5 {[%clk
0:03:38.4]} 57. h6 {[%clk 0:02:18]} 57... Kd6 {[%clk 0:02:29.1]} 58. h7 {[%clk
0:02:12.7]} 58... Rh5 {[%clk 0:02:30.4]} 59. Qg6+ {[%clk 0:02:12.6]} 1-0

[Event "Rapid della Domenica"]
[Site "Chess.com"]
[Date "2020.05.17"]
[Round "2"]
[White "Mrtre7"]
[Black "laremaro"]
[Result "0-1"]
[WhiteElo "1428"]
[BlackElo "1613"]
[TimeControl "720+3"]
[EndTime "7:02:55 PDT"]
[Termination "laremaro ha vinto per abbandono"]

1. d4 {[%clk 0:12:02.9]} 1... Nf6 {[%clk 0:11:57]} 2. c4 {[%clk 0:11:57.4]} 2...
e6 {[%clk 0:11:18.4]} 3. Nc3 {[%clk 0:11:57.8]} 3... d5 {[%clk 0:11:07.5]} 4.
cxd5 {[%clk 0:11:58.3]} 4... exd5 {[%clk 0:11:03.3]} 5. Bg5 {[%clk 0:11:58.8]}
5... Be7 {[%clk 0:11:04.6]} 6. e3 {[%clk 0:11:50]} 6... c6 {[%clk 0:11:04.1]} 7.
Bd3 {[%clk 0:11:48.2]} 7... O-O {[%clk 0:10:59.8]} 8. Qc2 {[%clk 0:11:49.7]}
8... h6 {[%clk 0:10:54.4]} 9. Bh4 {[%clk 0:11:45.6]} 9... Nbd7 {[%clk
0:10:49.1]} 10. Nge2 {[%clk 0:11:44.5]} 10... Re8 {[%clk 0:10:49.3]} 11. O-O
{[%clk 0:11:45.9]} 11... Nf8 {[%clk 0:10:18.5]} 12. Kh1 {[%clk 0:11:35.2]} 12...
Ne4 {[%clk 0:09:57.4]} 13. Bxe7 {[%clk 0:11:25.2]} 13... Qxe7 {[%clk 0:09:57]}
14. Rae1 {[%clk 0:10:47.6]} 14... Qh4 {[%clk 0:08:41]} 15. f3 {[%clk 0:08:49.2]}
15... Nf2+ {[%clk 0:08:10.7]} 16. Kg1 {[%clk 0:07:02]} 16... Nxd3 {[%clk
0:07:58.1]} 17. Qxd3 {[%clk 0:07:01.6]} 17... Nh7 {[%clk 0:05:43.6]} 18. e4
{[%clk 0:06:09.3]} 18... Nf6 {[%clk 0:05:39.2]} 19. Ng3 {[%clk 0:05:40.3]} 19...
Be6 {[%clk 0:04:43.9]} 20. e5 {[%clk 0:05:00.9]} 20... Nh5 {[%clk 0:04:42]} 21.
Nce2 {[%clk 0:04:09.5]} 21... Nf4 {[%clk 0:03:22.1]} 22. Nxf4 {[%clk 0:03:41.2]}
22... Qxf4 {[%clk 0:03:23.4]} 23. Nh5 {[%clk 0:03:02.8]} 23... Qg5 {[%clk
0:03:18.1]} 24. Ng3 {[%clk 0:02:58.5]} 24... Qf4 {[%clk 0:03:13.6]} 25. Ne2
{[%clk 0:02:43]} 25... Qf5 {[%clk 0:02:56.6]} 26. Qxf5 {[%clk 0:02:30.4]} 26...
Bxf5 {[%clk 0:02:57.4]} 27. g4 {[%clk 0:02:32.3]} 27... Bd3 {[%clk 0:02:55.1]}
28. Rf2 {[%clk 0:02:29.5]} 28... Bxe2 {[%clk 0:02:55.9]} 29. Rfxe2 {[%clk
0:02:31]} 29... g5 {[%clk 0:02:49.7]} 30. Kg2 {[%clk 0:02:29.9]} 30... Re6
{[%clk 0:02:32.6]} 31. Kg3 {[%clk 0:02:28.8]} 31... Rae8 {[%clk 0:02:30.8]} 32.
h4 {[%clk 0:02:24.8]} 32... f6 {[%clk 0:02:24.7]} 33. hxg5 {[%clk 0:02:11.1]}
33... hxg5 {[%clk 0:02:08]} 34. f4 {[%clk 0:02:04.8]} 34... gxf4+ {[%clk
0:02:06]} 35. Kxf4 {[%clk 0:02:06.1]} 35... c5 {[%clk 0:01:58.5]} 36. dxc5
{[%clk 0:01:44.3]} 36... a5 {[%clk 0:01:49.1]} 37. Kf5 {[%clk 0:01:39.5]} 37...
Kf7 {[%clk 0:01:41.7]} 38. Kf4 {[%clk 0:01:14]} 38... Kg6 {[%clk 0:01:30]} 39.
Kf3 {[%clk 0:00:49]} 39... fxe5 {[%clk 0:01:24.5]} 40. Rd2 {[%clk 0:00:40.1]}
40... e4+ {[%clk 0:01:18.8]} 41. Kg3 {[%clk 0:00:40.5]} 41... Re5 {[%clk
0:01:01.1]} 42. a3 {[%clk 0:00:38.1]} 42... a4 {[%clk 0:01:02.1]} 43. Rd4 {[%clk
0:00:36]} 43... Ra8 {[%clk 0:01:00.9]} 44. Rb4 {[%clk 0:00:37]} 44... Ra5 {[%clk
0:00:55.3]} 45. Rxb7 {[%clk 0:00:32.5]} 45... Rxc5 {[%clk 0:00:51.4]} 46. Ra7
{[%clk 0:00:34.5]} 46... Rc4 {[%clk 0:00:44]} 47. Rf1 {[%clk 0:00:30.2]} 47...
e3 {[%clk 0:00:44.6]} 48. Rff7 {[%clk 0:00:30.7]} 48... d4 {[%clk 0:00:31.3]}
49. Rg7+ {[%clk 0:00:31.2]} 49... Kf6 {[%clk 0:00:32]} 50. Raf7+ {[%clk
0:00:31.6]} 50... Ke6 {[%clk 0:00:33.7]} 51. Re7+ {[%clk 0:00:33.7]} 51... Kd5
{[%clk 0:00:35.7]} 52. Rxe5+ {[%clk 0:00:12.6]} 52... Kxe5 {[%clk 0:00:37.7]}
53. Rg5+ {[%clk 0:00:14.2]} 53... Kf6 {[%clk 0:00:38.9]} 54. Rf5+ {[%clk
0:00:14.7]} 54... Kg6 {[%clk 0:00:36]} 55. Kf3 {[%clk 0:00:15]} 55... Rc2 {[%clk
0:00:34.8]} 56. Rd5 {[%clk 0:00:14.8]} 56... Rd2 {[%clk 0:00:36.3]} 57. Re5
{[%clk 0:00:15.2]} 57... Rxb2 {[%clk 0:00:37]} 58. Ra5 {[%clk 0:00:16.4]} 58...
Rf2+ {[%clk 0:00:34.5]} 59. Ke4 {[%clk 0:00:16.7]} 59... e2 {[%clk 0:00:35.9]}
60. Ra6+ {[%clk 0:00:16.6]} 60... Kg5 {[%clk 0:00:37.1]} 61. Ra5+ {[%clk
0:00:16]} 61... Kxg4 {[%clk 0:00:38.1]} 62. Kd3 {[%clk 0:00:05.7]} 0-1

[Event "Rapid della Domenica"]
[Site "Chess.com"]
[Date "2020.05.17"]
[Round "3"]
[White "ottovolante"]
[Black "SanSecondoPR"]
[Result "0-1"]
[WhiteElo "993"]
[BlackElo "1285"]
[TimeControl "720+3"]
[EndTime "7:16:15 PDT"]
[Termination "SanSecondoPR ha vinto per abbandono"]

1. e4 {[%clk 0:12:02.9]} 1... e5 {[%clk 0:12:00.7]} 2. Nf3 {[%clk 0:12:02]} 2...
Nc6 {[%clk 0:11:59.5]} 3. Bb5 {[%clk 0:12:01.5]} 3... Nge7 {[%clk 0:11:58.5]} 4.
Bxc6 {[%clk 0:12:00.6]} 4... Nxc6 {[%clk 0:11:59.1]} 5. Nc3 {[%clk 0:12:02]}
5... g6 {[%clk 0:11:42.6]} 6. d3 {[%clk 0:11:58.6]} 6... Bg7 {[%clk 0:11:45.5]}
7. a3 {[%clk 0:11:56.1]} 7... O-O {[%clk 0:11:44.9]} 8. Bd2 {[%clk 0:11:54.7]}
8... d6 {[%clk 0:11:37.1]} 9. Qc1 {[%clk 0:11:55.7]} 9... Bg4 {[%clk 0:11:32.1]}
10. Bh6 {[%clk 0:11:54]} 10... Qf6 {[%clk 0:11:28.7]} 11. Bxg7 {[%clk
0:11:53.2]} 11... Qxg7 {[%clk 0:11:27.6]} 12. Qg5 {[%clk 0:11:12.5]} 12... Bxf3
{[%clk 0:11:24]} 13. gxf3 {[%clk 0:11:10.3]} 13... f5 {[%clk 0:11:18.5]} 14. Rg1
{[%clk 0:11:04.9]} 14... Nd4 {[%clk 0:11:15.6]} 15. Kd1 {[%clk 0:09:28.2]} 15...
Nxf3 {[%clk 0:11:12.4]} 16. Qg3 {[%clk 0:09:28.4]} 16... Nxg1 {[%clk 0:10:58.4]}
17. Qxg1 {[%clk 0:09:28.8]} 17... Qh6 {[%clk 0:10:48.1]} 18. Nd5 {[%clk
0:09:19.4]} 18... Rf7 {[%clk 0:10:27.2]} 19. c3 {[%clk 0:09:18.3]} 19... fxe4
{[%clk 0:10:24.6]} 20. dxe4 {[%clk 0:09:18.1]} 20... c6 {[%clk 0:10:24.7]} 21.
Ne3 {[%clk 0:09:15]} 21... Qf4 {[%clk 0:10:15.6]} 22. Ke2 {[%clk 0:09:11.5]}
22... Qxe4 {[%clk 0:10:07]} 23. Rf1 {[%clk 0:09:04.7]} 23... Raf8 {[%clk
0:09:58.9]} 24. f3 {[%clk 0:08:39.3]} 24... Rxf3 {[%clk 0:09:39.4]} 25. Rxf3
{[%clk 0:08:39.5]} 25... Qxf3+ {[%clk 0:09:38.2]} 26. Kd3 {[%clk 0:08:39.6]}
26... d5 {[%clk 0:09:26.3]} 27. Qg5 {[%clk 0:08:37.9]} 27... e4+ {[%clk
0:09:18.7]} 28. Kd4 {[%clk 0:08:37.5]} 28... Qf6+ {[%clk 0:08:56.3]} 29. Qxf6
{[%clk 0:08:35.8]} 29... Rxf6 {[%clk 0:08:56.3]} 30. h4 {[%clk 0:08:33.8]} 30...
Rf4 {[%clk 0:08:46.2]} 31. Ng2 {[%clk 0:08:23.6]} 31... Rg4 {[%clk 0:08:45.3]}
32. Ne3 {[%clk 0:08:18.3]} 32... Rxh4 {[%clk 0:08:44.3]} 33. c4 {[%clk
0:08:19.7]} 33... Rh5 {[%clk 0:08:40.9]} 34. cxd5 {[%clk 0:08:19.4]} 34... cxd5
{[%clk 0:08:37.2]} 35. Nxd5 {[%clk 0:08:20.2]} 35... Rxd5+ {[%clk 0:08:32.2]}
36. Kxd5 {[%clk 0:08:21.1]} 36... Kg7 {[%clk 0:08:23]} 37. Kxe4 {[%clk
0:08:02.3]} 37... Kf6 {[%clk 0:08:22.8]} 38. b4 {[%clk 0:08:02.9]} 38... h5
{[%clk 0:08:15.3]} 39. Kd5 {[%clk 0:08:02]} 39... h4 {[%clk 0:08:15]} 40. Kd6
{[%clk 0:07:59.7]} 40... h3 {[%clk 0:08:15.6]} 41. Kc7 {[%clk 0:08:01.2]} 41...
h2 {[%clk 0:08:16.3]} 42. Kxb7 {[%clk 0:08:02]} 42... h1=Q+ {[%clk 0:08:13.8]}
43. Kxa7 {[%clk 0:08:02.6]} 43... Qc6 {[%clk 0:08:07]} 44. Kb8 {[%clk
0:07:55.2]} 44... Qb5+ {[%clk 0:08:06.8]} 45. Kc7 {[%clk 0:07:56]} 45... Qa4
{[%clk 0:08:07.2]} 46. Kd6 {[%clk 0:07:54.6]} 46... Qxa3 {[%clk 0:08:08.2]} 0-1